[Event "1st Chessable Sunway Formentera 2022"]
[Site "Formentera Punta Prima"]
[Date "2022.05.03"]
[Round "5"]
[White "Vrolijk, Liam"]
[Black "Bergez, Luc"]
[Result "1-0"]
[ECO "E65"]
[WhiteElo "2467"]
[BlackElo "2331"]
[Annotator "TA"]
[PlyCount "97"]
[EventDate "2022.05.05"]
[EventType "swiss"]
[EventCountry "ESP"]
[SourceTitle "playchess.com"]
[Source "ChessBase"]
[SourceQuality "1"]
[TimeControl "40/5400+30:1800+30"]

{[%evp 16,97,21,12,53,57,59,56,52,67,132,142,134,140,194,193,189,183,277,298,318,328,438,426,531,413,558,463,455,462,458,466,704,687,743,733,728,714,658,749,755,751,793,793,781,770,797,781,814,814,807,800,999,765,747,723,979,978,953,912,1044,1020,945,694,968,681,676,654,5322,5310,29971,29973,29961,11512,5385,0,0,0,11619,6845,5839,6064,5414,5326]} 1. d4 {[%emt 0:00:06]} Nf6 {[%emt 0:01:16]} 2. c4 {[%emt 0:00:06]} g6 {[%emt 0:00:05]} 3. g3 {[%emt 0:00:05]} Bg7 {[%emt 0:00:05]} 4. Bg2 {[%emt 0:00:30]} O-O {[%emt 0:00:05]} 5. Nc3 {[%emt 0:00:05]} d6 {[%emt 0:00:06]} 6. Nf3 {[%emt 0:00:05]} c5 {[%emt 0:00:04]} 7. O-O {[%emt 0:00:30]} Nc6 {[%emt 0:00:10]} 8. dxc5 {[%emt 0:00:06]} dxc5 {[%emt 0:00:30]} 9. Bf4 {[%emt 0:00:10]} Nd7 {[%emt 0:00:05] Against Ne5. E65: King's Indian: Fianchetto: 6...c5 7 0-0 without d5 by White.} 10. Qc1 {[%emt 0:00:05]} e5 {[%emt 0:00:05]} 11. Bh6 {[%emt 0:00:05]} Nb6 {[%emt 0:00:30] [#] White is slightly better.} 12. Rd1 $146 {[%emt 0:00:05]} ({Predecessor:} 12. Bxg7 Kxg7 13. Rd1 Qe7 14. b3 e4 15. Nd2 f5 16. Nf1 Be6 17. Qb2 Qf6 18. Rd2 {½-½ (37) Villca,J (1746)-Pinto,D (1974) Pocos de Caldas 2013}) 12... Bd7 {[%emt 0:00:05]} (12... Qe7 $14) 13. Bxg7 $16 {[%emt 0:00:05] White is more active.} Kxg7 {[%emt 0:00:30] [#]} 14. Qe3 $1 {[%emt 0:00:05][%csl LRc5,LRe5]} Re8 {[%emt 0:00:11]} (14... Qe7 $16) 15. Qxc5 $18 {[%emt 0:00:05]} Rc8 {[%emt 0:00:05][%cal Oc6d4]} 16. b3 {[%emt 0:00:05]} e4 {[%emt 0:00:30]} (16... Nd4 $142 17. Qa5 Nc6) 17. Nd4 {[%emt 0:00:05]} Ne5 {[%emt 0:00:05][%cal Bc6e5,Be5g4,Bg4f2,Bf2d1][%mdl 32]} 18. Qa5 {[%emt 0:00:05]} e3 {[%emt 0:04:03]} 19. f4 {[%emt 0:00:30]} Ng4 {[%emt 0:00:30]} 20. Ndb5 {[%emt 0:00:05]} Rc5 {[%emt 0:08:38]} 21. Ne4 {[%emt 0:00:30]} Rxe4 {[%emt 0:15:22]} 22. Bxe4 {[%emt 0:04:54]} Nf2 {[%emt 0:00:30]} 23. Qc3+ {[%emt 0:00:30]} f6 {[%emt 0:11:34]} (23... Qf6 $142 24. Qxe3 Nxe4 25. Qxe4 Bxb5 26. cxb5 Nd5) 24. Qxe3 {[%emt 0:00:30]} Nxd1 {[%emt 0:00:30]} 25. Qxc5 {[%emt 0:00:05]} Bxb5 {[%emt 0:00:06]} 26. cxb5 {[%emt 0:00:30]} Qd2 {[%emt 0:00:05]} 27. Bf3 {[%emt 0:10:07]} Nd7 {[%emt 0:00:30]} 28. Qxa7 {[%emt 0:08:52]} b6 {[%emt 0:00:30] [#]} 29. Rxd1 $1 {[%emt 0:00:06]} Qxd1+ {[%emt 0:00:30][%mdl 4096] Endgame KQB-KQN} 30. Kg2 {[%emt 0:00:05]} h5 {[%emt 0:00:30]} 31. a4 {[%emt 0:00:05]} g5 {[%emt 0:15:13]} 32. fxg5 {[%emt 0:00:30]} fxg5 {[%emt 0:00:30]} 33. Bxh5 {[%emt 0:00:05] Hoping for Bg4.} Kf6 {[%emt 0:00:51]} 34. Bg4 {[%emt 0:00:30]} Qd5+ {[%emt 0:00:05] [#]} 35. Bf3 $1 {[%emt 0:00:30]} ({Weaker is} 35. Kh3 Qh1 36. Bxd7 Qf1+ 37. Kg4 Qxe2+ 38. Kh3 Qf1+ 39. Kg4 Qe2+ 40. Kh3 Qf1+ 41. Kg4 Qe2+ $11) 35... Qd4 {[%emt 0:00:30]} 36. Qa8 {[%emt 0:07:32]} Ne5 {[%emt 0:00:04]} 37. Qh8+ {[%emt 0:00:04]} Kf5 {[%emt 0:00:30]} 38. g4+ {[%emt 0:00:05]} Kg6 {[%emt 0:00:30]} 39. Qc8 {[%emt 0:22:18]} Kh6 {[%emt 0:00:05]} 40. Qe6+ {[%emt 0:00:05]} Kg7 {[%emt 0:00:05]} 41. Qd5 {[%emt 0:30:15]} Qb2 {[%emt 0:30:30]} 42. Qb7+ {[%emt 0:00:05]} Kh6 {[%emt 0:00:30]} 43. Qxb6+ {[%emt 0:00:05]} Ng6 {[%emt 0:00:30]} 44. Kf2 {[%emt 0:00:31]} (44. a5 $142 Kg7 45. a6 Nh4+ 46. Kh3 Ng6 47. a7 Qa1 48. Kg2 Nf4+ 49. Kg3) 44... Qe5 {[%emt 0:02:53]} 45. Kg1 $2 {[%emt 0:00:05]} (45. a5 $18 Kg7 46. a6 Qxh2+ 47. Kf1 Qh3+ 48. Ke1 Qg3+ 49. Kd1) 45... Qa1+ $1 $11 {[%emt 0:04:08]} 46. Kg2 {[%emt 0:00:30] White threatens Be4 and mate.} Kg7 $2 {[%emt 0:00:05][%mdl 8192]} (46... Qb2 $11 47. a5 Kg7) 47. Qc7+ {[%emt 0:00:30] White is clearly winning.} Kh6 {[%emt 0:00:05]} 48. Qd6 {[%emt 0:23:13] White wants to mate with Be4.} Kg7 {[%emt 0:00:06]} 49. Kf2 {[%emt 0:00:30] Weighted Error Value: White=0.14 (very precise) /Black=0.47} 1-0

[Event "1st Chessable Sunway Formentera 2022"]
[Site "Formentera Punta Prima"]
[Date "2022.05.03"]
[Round "5"]
[White "Batsiashvili, Nino"]
[Black "Gukesh D"]
[Result "0-1"]
[ECO "D38"]
[WhiteElo "2463"]
[BlackElo "2659"]
[Annotator "TA"]
[PlyCount "78"]
[EventDate "2022.05.05"]
[EventType "swiss"]
[EventCountry "ESP"]
[SourceTitle "playchess.com"]
[Source "ChessBase"]
[SourceQuality "1"]
[TimeControl "40/5400+30:1800+30"]

{[%evp 12,78,25,17,31,32,22,32,29,0,10,9,2,7,-5,-8,0,-37,-40,-45,-52,-40,-41,-48,-33,-49,0,0,0,0,0,-59,-54,-64,-73,-73,-80,-62,-86,-66,-68,-89,-52,-385,-369,-385,-364,-387,-369,-384,-376,-383,-372,-372,-366,-467,-456,-431,-337,-411,-366,-403,-438,-444,-444,-415,-434,-491,-472]} 1. d4 {[%emt 0:00:05]} Nf6 {[%emt 0:00:51]} 2. c4 {[%emt 0:00:06]} e6 {[%emt 0:00:43]} 3. Nc3 {[%emt 0:00:25]} Bb4 {[%emt 0:00:29]} 4. Nf3 {[%emt 0:00:07]} d5 {[%emt 0:02:49]} 5. Qa4+ {[%emt 0:00:12]} Nc6 {[%emt 0:00:09]} 6. e3 {[%emt 0:00:12]} O-O {[%emt 0:00:07]} 7. Bd2 {[%emt 0:00:04]} Re8 {[%emt 0:01:50] D38: Queen's Gambit Declined: Ragozin Defence (4 Nf3 Bb4).} 8. a3 {[%emt 0:00:09]} Bf8 {[%emt 0:00:07]} 9. Rd1 {[%emt 0:00:36]} a6 {[%emt 0:04:37] White is slightly better.} 10. Qc2 {[%emt 0:03:45]} b6 {[%emt 0:00:38] [#]} 11. Bc1 $146 {[%emt 0:01:58]} ({Predecessor:} 11. Bd3 Bb7 12. O-O h6 13. Bc1 Na5 14. cxd5 exd5 15. b4 Nc6 16. Bb2 Nb8 17. Ne5 {½-½ (31) Giri,A (2772)-Harikrishna,P (2719) Belgrade 2022}) 11... Bb7 {[%emt 0:01:32]} 12. cxd5 {[%emt 0:00:37]} exd5 {[%emt 0:00:06]} 13. Bd3 {[%emt 0:00:27]} Ne7 {[%emt 0:01:01][%cal Bc6e7,Be7c8,Bc8d6][%mdl 32]} 14. Ne5 {[%emt 0:15:46]} c5 {[%emt 0:00:59]} 15. O-O {[%emt 0:00:19]} c4 {[%emt 0:01:46]} 16. Be2 {[%emt 0:00:09]} b5 {[%emt 0:00:18]} 17. b3 {[%emt 0:01:03]} Nc8 {[%emt 0:07:30]} 18. bxc4 {[%emt 0:16:34]} bxc4 {[%emt 0:06:19]} (18... dxc4 $15 {should be considered.} 19. e4 h6) 19. e4 $11 {[%emt 0:08:48]} Nd6 {[%emt 0:03:40]} 20. exd5 {[%emt 0:08:43]} Nxd5 {[%emt 0:00:20]} 21. Bf3 {[%emt 0:03:17]} (21. Na4 $11) 21... Nxc3 $15 {[%emt 0:01:19]} 22. Qxc3 {[%emt 0:01:33][%cal Oe5f7]} Qc7 {[%emt 0:06:21]} 23. a4 {[%emt 0:07:58]} f6 {[%emt 0:13:53][%cal Bf7f6,Bf6f5][%mdl 32]} 24. Ng4 {[%emt 0:04:03]} Bxf3 {[%emt 0:08:15]} 25. Qxf3 {[%emt 0:00:02]} Qb7 {[%emt 0:00:08]} 26. d5 {[%emt 0:04:27]} Qb3 {[%emt 0:00:24]} 27. Be3 $2 {[%emt 0:00:58][%mdl 8192] [#] Now White is beyond hope.} ({White should try} 27. Bf4 $15) 27... f5 $1 $19 {[%emt 0:03:34]} 28. Nh6+ {[%emt 0:08:30]} gxh6 {[%emt 0:00:06]} 29. Qg3+ {[%emt 0:01:12]} Kf7 {[%emt 0:00:08]} 30. Qh4 {[%emt 0:00:38]} Re4 {[%emt 0:04:29][%cal Be8e4,Be4g4,Bg4g6][%mdl 32]} 31. Qh5+ {[%emt 0:00:41]} Kg8 {[%emt 0:00:10]} 32. Bxh6 {[%emt 0:00:29]} Rg4 {[%emt 0:00:33] Prevents Qg5+.} 33. h3 {[%emt 0:01:13]} Rg6 {[%emt 0:00:38]} 34. Bf4 {[%emt 0:00:13]} Qb7 {[%emt 0:00:19]} 35. Rfe1 {[%emt 0:01:39]} Qf7 {[%emt 0:00:37][%cal Og6g2] [#] Against Re6. Strongly threatening ...Rxg2+!} 36. Qf3 {[%emt 0:01:05]} Ne4 {[%emt 0:00:07]} 37. h4 {[%emt 0:00:58]} h5 {[%emt 0:00:15]} 38. d6 {[%emt 0:01:29]} Rd8 {[%emt 0:00:34][%cal Rf8d6]} 39. d7 {[%emt 0:02:09]} Rg4 {[%emt 0:00:06] Weighted Error Value: White=0.35/Black=0.08 (flawless)} 0-1

[Event "1st Chessable Sunway Formentera 2022"]
[Site "Formentera Punta Prima"]
[Date "2022.05.03"]
[Round "5"]
[White "Park, Evan"]
[Black "Kovacs, Klara"]
[Result "1-0"]
[ECO "C42"]
[WhiteElo "2431"]
[BlackElo "2108"]
[Annotator "TA"]
[PlyCount "65"]
[EventDate "2022.05.05"]
[EventType "swiss"]
[EventCountry "ESP"]
[SourceTitle "playchess.com"]
[Source "ChessBase"]
[SourceQuality "1"]
[TimeControl "40/5400+30:1800+30"]

{[%evp 11,65,48,59,59,72,66,58,61,79,62,76,66,86,87,92,59,109,110,87,82,132,122,129,126,113,110,106,102,257,270,267,262,489,499,501,493,485,489,520,523,502,495,472,352,479,475,566,589,619,489,728,735,685,621,789,636]} 1. e4 {[%emt 0:00:02]} e5 {[%emt 0:00:07]} 2. Nf3 {[%emt 0:00:03]} Nf6 {[%emt 0:00:05]} 3. Nc3 {[%emt 0:00:35]} Bb4 {[%emt 0:00:23]} 4. Nxe5 {[%emt 0:02:13]} Qe7 {[%emt 0:09:47]} 5. Nd3 {[%emt 0:01:26]} Bxc3 {[%emt 0:04:50]} 6. dxc3 {[%emt 0:00:23]} Nxe4 {[%emt 0:00:09]} 7. Be2 {[%emt 0:02:41] C42: Petroff Defence: 3 Nxe5 and unusual White 3rd moves.} d5 {[%emt 0:00:33]} 8. O-O {[%emt 0:04:11]} O-O {[%emt 0:04:05]} 9. Re1 {[%emt 0:04:34] White is slightly better.} c6 {[%emt 0:57:52] [#]} 10. Bf1 $146 {[%emt 0:05:21] [#] Hoping for f3.} ({Predecessor:} 10. f3 Nd6 11. Bf1 Qf6 12. Be3 Nd7 13. Bf2 Nc4 14. Qe2 b6 15. b3 Nd6 16. Bd4 {½-½ (42) Rysbayeva,A (1599)-Dudas,E (2000) Belfort 2005}) 10... Qf6 {[%emt 0:00:00]} 11. Be3 {[%emt 0:02:33]} Nd7 {[%emt 0:00:00]} 12. f3 {[%emt 0:01:29]} Ng5 {[%emt 0:00:00]} 13. Nc5 {[%emt 0:07:51]} Ne6 {[%emt 0:00:00]} (13... h6 $14) 14. Nxe6 $16 {[%emt 0:01:35]} fxe6 {[%emt 0:00:00]} 15. c4 {[%emt 0:01:26]} Kh8 {[%emt 0:00:00]} (15... b6 $142) 16. b3 {[%emt 0:04:39]} b6 {[%emt 0:00:00]} 17. cxd5 {[%emt 0:01:16]} exd5 {[%emt 0:00:00]} 18. c4 {[%emt 0:00:26]} dxc4 {[%emt 0:00:00]} 19. Bxc4 {[%emt 0:01:58]} c5 $2 {[%emt 0:00:00] Against Bd4. This costs Black the game.} (19... Rd8 $16) 20. Qd5 $18 {[%emt 0:03:47]} Rb8 {[%emt 0:00:00]} 21. Bg5 {[%emt 0:02:15]} Qg6 {[%emt 0:01:26] [#]} (21... Bb7) 22. Be7 $1 {[%emt 0:02:36] A strong pair of Bishops.} Nf6 {[%emt 0:05:26]} 23. Qd6 {[%emt 0:01:49]} Bh3 {[%emt 0:00:24][%csl Gh3][%cal Rg6g2]} 24. Qg3 {[%emt 0:00:19] Active counter play!} Qxg3 {[%emt 0:09:08]} 25. hxg3 {[%emt 0:00:02]} Bd7 {[%emt 0:00:08]} 26. Bxf8 {[%emt 0:00:16]} Rxf8 {[%emt 0:00:07]} 27. Be6 {[%emt 0:00:47]} Bc6 {[%emt 0:00:14]} 28. Rad1 {[%emt 0:00:12] White is clearly winning.} g5 {[%emt 0:02:13]} 29. Rd6 {[%emt 0:00:11]} Be8 {[%emt 0:01:55]} 30. Bf5 {[%emt 0:00:59]} Nh5 {[%emt 0:00:51]} (30... Kg7 $142 31. g4 Bg6 32. Bxg6 Kxg6) 31. g4 {[%emt 0:00:33]} Ng7 {[%emt 0:00:11]} 32. Re7 {[%emt 0:00:14]} Kg8 {[%emt 0:01:42]} 33. Rd8 {[%emt 0:01:07] Weighted Error Value: White=0.14 (very precise) /Black=0.40} 1-0

[Event "1st Chessable Sunway Formentera 2022"]
[Site "Formentera Punta Prima"]
[Date "2022.05.03"]
[Round "5"]
[White "Romanishin, Oleg M"]
[Black "Soham Das"]
[Result "0-1"]
[ECO "D02"]
[WhiteElo "2400"]
[BlackElo "2266"]
[Annotator "TA"]
[PlyCount "105"]
[EventDate "2022.05.05"]
[EventType "swiss"]
[EventCountry "ESP"]
[SourceTitle "playchess.com"]
[Source "ChessBase"]
[SourceQuality "1"]
[TimeControl "40/5400+30:1800+30"]

{[%evp 13,105,9,7,0,7,-12,0,-16,-28,-25,-18,-29,-20,-31,-37,-38,-34,-38,-37,-38,-37,-36,-41,-58,-71,-78,-63,-82,-65,-76,-70,-72,-78,-113,-111,-167,-181,-210,-204,-257,-243,-238,-230,-252,-253,-271,-237,-257,-258,-251,-261,-269,-204,-237,-235,-251,-241,-267,-272,-277,-245,-269,-276,-293,-151,-351,-352,-364,-360,-337,-283,-422,-413,-379,-326,-400,-397,-591,-616,-639,-656,-848,-784,-1024,-584,-583,-567,-564,-570,-788,-793,-713,-682,-689]} 1. Nf3 {[%emt 0:00:08]} d5 {[%emt 0:07:55]} 2. g3 {[%emt 0:01:36]} g6 {[%emt 0:00:52]} 3. Bg2 {[%emt 0:00:54]} Bg7 {[%emt 0:00:03]} 4. d4 {[%emt 0:00:09]} c6 {[%emt 0:00:15]} 5. O-O {[%emt 0:00:14]} Nf6 {[%emt 0:00:06]} 6. Bf4 {[%emt 0:00:13]} Bf5 {[%emt 0:10:32]} 7. Qc1 {[%emt 0:01:41]} O-O {[%emt 0:06:38]} 8. c4 {[%emt 0:04:32] D02: 1 d4 d5 2 Nf3 sidelines, including 2...Nf6 3 g3 and 2...Nf6 3 Bf4.} Nbd7 {[%emt 0:01:19] [#]} 9. Nbd2 $146 {[%emt 0:17:44]} ({Predecessor:} 9. Nc3 Rc8 10. Bh6 Be4 11. Bxg7 Kxg7 12. Nxe4 Nxe4 13. Qc2 e6 14. Rfd1 Qe7 15. Rac1 Rcd8 {½-½ (62) Dubov,D (2690)-Rakhmanov,A (2645) Moscow 2019}) 9... Ne4 {[%emt 0:22:13]} 10. Nb3 {[%emt 0:04:06] The position is equal.} dxc4 {[%emt 0:16:59]} 11. Qxc4 {[%emt 0:04:41]} a5 {[%emt 0:02:27]} 12. Nh4 {[%emt 0:21:25] [#]} Be6 $1 {[%emt 0:01:44]} 13. Qc2 {[%emt 0:00:08] [#]} (13. Qd3 Nd6) 13... a4 $1 {[%emt 0:00:37]} 14. Bxe4 {[%emt 0:10:05]} (14. Nd2 Nd6) 14... axb3 {[%emt 0:00:22]} 15. axb3 {[%emt 0:00:04]} Qb6 {[%emt 0:01:33]} 16. Nf3 {[%emt 0:01:08]} Bxb3 {[%emt 0:07:05]} 17. Qd2 {[%emt 0:00:18]} Nf6 {[%emt 0:03:33]} 18. Rxa8 {[%emt 0:01:10]} Rxa8 {[%emt 0:00:04][%cal Bf8a8,Ba8a4,Ba4b4][%mdl 32]} 19. Bb1 {[%emt 0:00:05]} Bd5 {[%emt 0:01:21] Against e4} 20. Ne5 {[%emt 0:00:27]} Ra4 {[%emt 0:01:19]} 21. Be3 {[%emt 0:01:01]} Rb4 {[%emt 0:04:53]} 22. Nd3 {[%emt 0:00:08] [#]} Rb5 {[%emt 0:00:12] Black is more active.} 23. f3 {[%emt 0:07:13] Inhibits Ne4.} Ne8 {[%emt 0:00:58]} 24. Bf2 {[%emt 0:00:19]} (24. Qc3 $17) 24... Bxd4 $19 {[%emt 0:04:50]} 25. e3 {[%emt 0:00:16]} Bxb2 {[%emt 0:00:11]} 26. Bc2 {[%emt 0:04:23]} Bc4 {[%emt 0:02:37]} 27. Ba4 {[%emt 0:03:26]} Bxd3 {[%emt 0:02:47]} 28. Qxd3 {[%emt 0:00:08]} Ra5 {[%emt 0:00:22]} 29. Bc2 {[%emt 0:04:22]} Nd6 {[%emt 0:00:33]} 30. Rb1 {[%emt 0:04:28]} Ra1 {[%emt 0:00:34]} 31. Rxa1 {[%emt 0:00:09]} Bxa1 {[%emt 0:00:03]} 32. e4 {[%emt 0:00:22]} Qb5 {[%emt 0:00:41]} 33. Qd1 {[%emt 0:00:40]} Bc3 {[%emt 0:00:49]} 34. f4 {[%emt 0:00:29]} f6 {[%emt 0:00:27] Against e5} 35. h4 {[%emt 0:02:09]} Kg7 {[%emt 0:00:26]} 36. Kg2 {[%emt 0:01:54]} Qc4 {[%emt 0:00:32]} 37. Bd3 {[%emt 0:00:20]} Qb4 {[%emt 0:00:10]} 38. Qe2 {[%emt 0:00:28]} Qb2 {[%emt 0:00:31]} ({Black should try} 38... Bd4 $19 {Hoping for ...Bxf2.} 39. Be1 Qb3) 39. Bc2 $2 {[%emt 0:00:31] White does not recover from this.} (39. Qxb2 $17 {is the only way for White.} Bxb2 40. Bc5) 39... Bd4 {[%emt 0:00:03]} 40. e5 {[%emt 0:00:00]} fxe5 {[%emt 0:00:00]} 41. fxe5 {[%emt 0:02:45]} Qb5 {[%emt 0:09:10]} 42. Bd3 {[%emt 0:13:02]} (42. Qxb5 {was worth a try.} Nxb5 43. Bb3) 42... Qd5+ {[%emt 0:01:12]} 43. Kh2 {[%emt 0:00:08]} Nf7 {[%emt 0:11:00]} 44. e6 {[%emt 0:06:30]} Nd6 {[%emt 0:02:16] Against Bc4. And now ...Bxf2 would win.} 45. Bxd4+ {[%emt 0:00:52]} (45. Be1 $142) 45... Qxd4 {[%emt 0:00:03][%mdl 4096] Endgame KQB-KQN. Black is clearly winning.} 46. h5 {[%emt 0:00:08]} c5 {[%emt 0:04:13]} 47. hxg6 {[%emt 0:02:11]} hxg6 {[%emt 0:00:02] aiming for ...c4.} 48. Qc2 {[%emt 0:00:31]} Qe3 {[%emt 0:02:02]} 49. Kg2 {[%emt 0:01:10]} Qg5 {[%emt 0:03:02]} 50. Qc3+ {[%emt 0:00:47]} Kh7 {[%emt 0:00:10]} 51. Be2 {[%emt 0:02:40]} b5 {[%emt 0:01:03]} 52. Qf3 {[%emt 0:01:38]} Qe5 {[%emt 0:00:38]} 53. Bd3 {[%emt 0:00:26] Weighted Error Value: White=0.41/Black=0.18 (very precise)} 0-1

[Event "1st Chessable Sunway Formentera 2022"]
[Site "Formentera Punta Prima"]
[Date "2022.05.03"]
[Round "5"]
[White "Alinasab, Mobina"]
[Black "Eugene, Floryan"]
[Result "1/2-1/2"]
[ECO "C95"]
[WhiteElo "2373"]
[BlackElo "2370"]
[Annotator "TA"]
[PlyCount "103"]
[EventDate "2022.05.05"]
[EventType "swiss"]
[EventCountry "ESP"]
[SourceTitle "playchess.com"]
[Source "ChessBase"]
[SourceQuality "1"]
[TimeControl "40/5400+30:1800+30"]

{[%evp 21,103,34,40,13,89,89,86,76,78,60,62,72,66,70,58,65,60,13,48,44,54,10,79,93,93,81,81,82,95,82,80,78,78,69,91,93,113,100,131,89,99,97,95,109,95,14,22,0,0,0,27,14,39,30,29,0,31,41,37,33,39,15,18,11,14,0,0,0,0,0,0,0,0,0,0,0,0,0,0,0,0,0,0,0]} 1. e4 {[%emt 1:30:57]} e5 {[%emt 1:30:52]} 2. Nf3 {[%emt 0:00:25]} Nc6 {[%emt 0:00:33]} 3. Bb5 {[%emt 0:00:33][%cal Bf1b5,Bb5a4,Ba4b3][%mdl 32]} a6 {[%emt 0:00:00]} 4. Ba4 {[%emt 0:00:28]} Nf6 {[%emt 0:00:32]} 5. O-O {[%emt 0:00:28]} Be7 {[%emt 0:00:41]} 6. Re1 {[%emt 0:00:21]} b5 {[%emt 0:00:31]} 7. Bb3 {[%emt 0:00:42]} d6 {[%emt 0:00:25]} 8. c3 {[%emt 0:00:13][%cal Bc2c3,Bc3c4][%mdl 32]} O-O {[%emt 0:00:25]} 9. h3 {[%emt 0:00:26]} Nb8 {[%emt 0:00:29]} 10. d4 {[%emt 0:00:01]} Nbd7 {[%emt 0:00:47]} 11. c4 {[%emt 0:00:00]} c6 {[%emt 0:00:00]} 12. Qc2 {[%emt 0:00:00] [#] C95: Closed Ruy Lopez: Breyer Variation with 10 d4.} b4 $146 {[%emt 0:00:00]} (12... a5 $11 13. cxb5 cxb5) ({Predecessor:} 12... Bb7 13. a3 Rc8 14. Nc3 exd4 15. Nxd4 g6 16. Bh6 Re8 17. Rad1 c5 18. Nf3 b4 19. Nd5 Bxd5 20. cxd5 {1-0 (87) Santos Latasa,J (2639)-Topalov,V (2730) Salamanca 2021}) 13. c5 $16 {[%emt 0:00:00]} Qc7 {[%emt 0:00:00][%cal Rd6c5]} 14. cxd6 {[%emt 0:00:00] White is better.} Bxd6 {[%emt 0:01:55]} 15. dxe5 {[%emt 0:00:00]} Nxe5 {[%emt 0:00:00]} 16. Nbd2 {[%emt 0:03:30]} Re8 {[%emt 0:00:00]} 17. Nxe5 {[%emt 0:00:00]} Bxe5 {[%emt 0:01:08]} 18. Nf3 {[%emt 0:00:00]} Be6 {[%emt 0:00:00]} 19. Bg5 {[%emt 0:00:00]} (19. Nxe5 $14 Qxe5 20. f3) 19... Nd7 {[%emt 0:00:00]} 20. Be3 {[%emt 0:00:00]} Bf6 {[%emt 0:00:00]} 21. Bd4 {[%emt 0:00:00]} c5 {[%emt 0:00:00]} (21... Ne5 $11 22. Bxe5 Bxe5) 22. Bxf6 {[%emt 0:00:00]} Nxf6 {[%emt 0:03:03]} 23. e5 {[%emt 0:00:00]} Bxb3 {[%emt 0:00:00]} 24. axb3 {[%emt 0:04:24]} Nd7 {[%emt 0:01:02][%cal Rd7e5]} 25. Ng5 {[%emt 0:00:01]} Nf8 {[%emt 0:00:34] [#]} 26. f4 {[%emt 0:00:00][%cal Bf2f4,Bf4f5][%mdl 32]} Red8 {[%emt 0:00:00]} 27. f5 {[%emt 0:00:00] White is much more active.} Re8 {[%emt 0:00:00]} 28. Qc4 {[%emt 0:00:00]} Rad8 {[%emt 0:00:22]} 29. Nf3 {[%emt 0:00:00] Against Rd4} Qd7 {[%emt 0:00:00]} 30. e6 {[%emt 0:02:32]} (30. Rxa6 Qxf5 31. Qxc5 Ng6 $14) 30... fxe6 {[%emt 0:02:04]} 31. fxe6 {[%emt 0:00:27]} ({Resist} 31. Qxc5 exf5 32. Qc4+ (32. Rxa6 Rxe1+ 33. Nxe1 Qd1 $11) 32... Qf7 $14) 31... Rxe6 {[%emt 0:00:06]} 32. Rxa6 {[%emt 0:00:00]} Rde8 {[%emt 0:00:55]} 33. Rexe6 {[%emt 0:01:00]} (33. Raxe6 $16 Rxe6 34. Qxc5) 33... Nxe6 $11 {[%emt 0:00:18]} 34. Kh2 {[%emt 0:00:08] [#] And now Ng5 would win.} (34. Kh1 $5 {[%cal Rf3g5]} Qf7 35. Rd6 $14) 34... Qf7 {[%emt 0:00:00]} 35. Kh1 {[%emt 0:01:00]} Nf4 {[%emt 0:00:00]} 36. Qxc5 {[%emt 0:00:19]} Qxb3 {[%emt 0:00:22]} 37. Kh2 {[%emt 0:00:45]} Rf8 {[%emt 0:00:40]} (37... Qxb2 $2 38. Qc4+ Kh8 39. Qxf4 $18) 38. Ne5 {[%emt 0:00:11]} Qd5 {[%emt 0:01:11]} (38... Qxb2 {leads to mate.} 39. Qc4+) (38... Nh5 {with more complications.} 39. Ra1 g6 40. Ng4 Qg3+) 39. Qxd5+ {[%emt 0:00:38]} Nxd5 $14 {[%emt 0:01:03][%mdl 4096] Endgame KRN-KRN} 40. Rd6 {[%emt 0:00:29]} Ne3 {[%emt 0:00:12]} 41. Rd3 {[%emt 0:30:54]} Nf5 {[%emt 0:26:44] The position is equal.} 42. b3 {[%emt 0:00:00]} Re8 {[%emt 0:00:00]} 43. Nc4 {[%emt 0:00:00]} Re2 {[%emt 0:00:00]} 44. Kg1 {[%emt 0:01:14]} h5 {[%emt 0:04:34]} 45. g4 {[%emt 0:00:00]} hxg4 {[%emt 0:01:06]} 46. hxg4 {[%emt 0:01:22]} Nh4 {[%emt 0:00:39]} 47. Kf1 {[%emt 0:00:22]} Rc2 {[%emt 0:00:00]} 48. Ne3 {[%emt 0:00:00]} Rb2 {[%emt 0:00:00]} 49. Nd5 {[%emt 0:01:05]} Ng6 {[%emt 0:01:39]} 50. Re3 {[%emt 0:00:00]} Kf7 {[%emt 0:00:00]} 51. Nxb4 {[%emt 0:00:56]} Kf6 {[%emt 0:00:59]} 52. Nc6 {[%emt 0:00:00] Weighted Error Value: White=0.12 (very precise) /Black=0.12 (very precise)} 1/2-1/2